fUSD/lending_fUSD_20250207
["ID","MTS","AMOUNT","RATE_DAILY","PERIOD"]
[352026172,1738887058492,-761.68,0.00016849,2]
[352026173,1738887058502,-1006.06,0.00016849,2]
[352026174,1738887058512,-500.0,0.00016849,2]
[352026175,1738887058522,-500.0,0.00016849,2]
[352026176,1738887058535,-767.84,0.00016849,2]
[352026177,1738887058545,-1113.92,0.00016849,2]
[352026178,1738887058555,-500.0,0.00016849,2]
[352026179,1738887058566,-859.98,0.00016849,2]
[352026180,1738887058576,-151.0,0.00016849,2]
[352026181,1738887058586,-648.05,0.00016849,2]
[352026182,1738887058596,-790.48,0.00016849,2]
[352026183,1738887058606,-500.0,0.00016849,2]
[352026184,1738887058616,-500.0,0.00016849,2]
[352026185,1738887058627,-500.0,0.00016849,2]
[352026186,1738887058637,-1014.32,0.00016849,2]
[352026187,1738887058647,-1534.72,0.00016849,2]
[352026188,1738887058656,-954.05,0.00016849,2]
[352026189,1738887058667,-831.75,0.00016849,2]
[352026190,1738887058676,-500.0,0.00016849,2]
[352026191,1738887058686,-500.0,0.00016849,2]
[352026192,1738887058695,-500.0,0.00016849,2]
[352026193,1738887058704,-721.07,0.00016849,2]
[352026194,1738887058714,-932.77,0.00016849,2]
[352026195,1738887058723,-1177.66,0.00016849,2]
[352026196,1738887058733,-500.0,0.00016849,2]
[352026197,1738887058742,-500.0,0.00016849,2]
[352026198,1738887058751,-500.0,0.00016849,2]
[352026199,1738887058760,-809.96,0.00016849,2]
[352026200,1738887058770,-937.04,0.00016849,2]
[352026201,1738887058779,-819.27,0.00016849,2]
[352026202,1738887058790,-500.0,0.00016849,2]
[352026203,1738887058799,-1021.65,0.00016849,2]
[352026204,1738887058808,-500.0,0.00016849,2]
[352026205,1738887058818,-533.9,0.00016849,2]
[352026206,1738887058827,-921.55,0.00016849,2]
[352026207,1738887058836,-1572.61,0.00016849,2]
[352026208,1738887058846,-757.66,0.00016849,2]
[352026209,1738887058855,-508.02,0.00016849,2]
[352026210,1738887058865,-845.1,0.00016849,2]
[352026211,1738887058874,-1046.11,0.00016849,2]
[352026212,1738887058883,-1427.31,0.00016849,2]
[352026213,1738887058892,-794.65,0.00016849,2]
[352026214,1738887058902,-500.0,0.00016849,2]
[352026215,1738887058911,-2730.71,0.00016849,2]
[352026216,1738887058921,-806.13,0.00016849,2]
[352026217,1738887058931,-500.0,0.00016849,2]
[352026218,1738887058941,-1195.72,0.00016849,2]
[352026219,1738887058951,-500.0,0.00016849,2]
[352026220,1738887058962,-568.32,0.00016849,2]
[352026221,1738887058971,-845.52,0.00016849,2]
[352026222,1738887058983,-1708.35,0.00016849,2]
[352026223,1738887058994,-500.0,0.00016849,2]
[352026224,1738887059003,-500.0,0.00016849,2]
[352026225,1738887059014,-1000.0,0.00016849,2]
[352026226,1738887059025,-1313.56,0.00016849,2]
[352026227,1738887059037,-1698.53,0.00016849,2]
[352026228,1738887059046,-905.6,0.00016849,2]
[352026229,1738887059056,-760.42,0.00016849,2]
[352026230,1738887059067,-154.95,0.00016849,2]
[352026231,1738887059078,-1365.46,0.00016849,2]
[352026232,1738887059088,-1047.01,0.00016849,2]
[352026233,1738887059098,-745.99,0.00016849,2]
[352026234,1738887059110,-359.64891959,0.00016849,2]
[352026235,1738887059120,-1348.29,0.00016849,2]
[352026236,1738887059130,-500.0,0.00016849,2]
[352026237,1738887059140,-580.7973728,0.00016849,2]
[352026238,1738887059151,-500.0,0.00016849,2]
[352026239,1738887059162,-500.0,0.00016849,2]
[352026240,1738887059172,-500.0,0.00016849,2]
[352026241,1738887059183,-1127.34,0.00016849,2]
[352026242,1738887059193,-1455.42,0.00016849,2]
[352026243,1738887059203,-1300.25,0.00016849,2]
[352026244,1738887059212,-500.0,0.00016849,2]
[352026245,1738887059221,-500.0,0.00016849,2]
[352026246,1738887059230,-814.3,0.00016849,2]
[352026247,1738887059240,-500.0,0.00016849,2]
[352026248,1738887059249,-517.97,0.00016849,2]
[352026249,1738887059258,-500.0,0.00016849,2]
[352026250,1738887059268,-500.0,0.00016849,2]
[352026251,1738887059277,-2883.63,0.00016849,2]
[352026252,1738887059288,-500.0,0.00016849,2]
[352026253,1738887059297,-500.0,0.00016849,2]
[352026254,1738887059307,-500.0,0.00016849,2]
[352026255,1738887059316,-647.54,0.00016849,2]
[352026256,1738887059327,-1252.07,0.00016849,2]
[352026257,1738887059337,-1086.03,0.00016849,2]
[352026258,1738887059347,-500.0,0.00016849,2]
[352026259,1738887059358,-1143.54,0.00016849,2]
[352026260,1738887059368,-500.0,0.00016849,2]
[352026261,1738887059378,-1045.05,0.00016849,2]
[352026262,1738887059389,-500.0,0.00016849,2]
[352026263,1738887059399,-500.0,0.00016849,2]
[352026264,1738887059410,-500.0,0.00016849,2]
[352026265,1738887059420,-500.0,0.00016849,2]
[352026266,1738887059430,-606.53538613,0.00016849,2]
[352026267,1738887059440,-1780.26,0.00016849,2]
[352026268,1738887059450,-500.0,0.00016849,2]
[352026269,1738887059461,-640.21011767,0.00016849,2]
[352026270,1738887059471,-1089.69,0.00016849,2]
[352026271,1738887059480,-500.0,0.00016849,2]
[352026272,1738887059490,-1130.82,0.00016849,2]
[352026273,1738887059499,-500.0,0.00016849,2]
[352026274,1738887059509,-500.0,0.00016849,2]
[352026275,1738887059519,-1278.31,0.00016849,2]
[352026276,1738887059528,-500.0,0.00016849,2]
[352026277,1738887059541,-500.0,0.00016849,2]
[352026278,1738887059551,-867.97,0.00016849,2]
[352026279,1738887059561,-801.06,0.00016849,2]
[352026280,1738887059571,-500.0,0.00016849,2]
[352026281,1738887059581,-500.0,0.00016849,2]
[352026282,1738887059590,-500.0,0.00016849,2]
[352026283,1738887059600,-1021.32,0.00016849,2]
[352026284,1738887059610,-652.88,0.00016849,2]
[352026285,1738887059619,-500.0,0.00016849,2]
[352026286,1738887059629,-500.0,0.00016849,2]
[352026287,1738887059639,-721.13,0.00016849,2]
[352026288,1738887059648,-500.0,0.00016849,2]
[352026289,1738887059658,-558.13,0.00016849,2]
[352026290,1738887059667,-500.0,0.00016849,2]
[352026291,1738887059677,-500.0,0.00016849,2]
[352026292,1738887059687,-500.0,0.00016849,2]
[352026293,1738887059696,-2386.13,0.00016849,2]
[352026294,1738887059706,-500.0,0.00016849,2]
[352026295,1738887059715,-500.0,0.00016849,2]
[352026296,1738887059725,-500.0,0.00016849,2]
[352026297,1738887059735,-500.0,0.00016849,2]
[352026298,1738887059745,-634.77,0.00016849,2]
[352026299,1738887059755,-532.47,0.00016849,2]
[352026300,1738887059764,-781.32,0.00016849,2]
[352026301,1738887059774,-500.0,0.00016849,2]
[352026302,1738887059786,-500.0,0.00016849,2]
[352026303,1738887059796,-643.51,0.00016849,2]
[352026304,1738887059806,-500.0,0.00016849,2]
[352026305,1738887059816,-500.0,0.00016849,2]
[352026306,1738887059825,-500.0,0.00016849,2]
[352026307,1738887059835,-803.41,0.00016849,2]
[352026308,1738887059844,-500.0,0.00016849,2]
[352026309,1738887059854,-500.0,0.00016849,2]
[352026310,1738887059863,-896.94,0.00016849,2]
[352026311,1738887059872,-832.99,0.00016849,2]
[352026312,1738887059882,-500.0,0.00016849,2]
[352026313,1738887059891,-1571.73,0.00016849,2]
[352026314,1738887059900,-500.0,0.00016849,2]
[352026315,1738887059910,-500.0,0.00016849,2]
[352026316,1738887059920,-300.0,0.000169,6]
[352026317,1738887059930,-16799.58119349,0.000169,2]
[352026318,1738887059940,-16799.58119345,0.000169,2]
[352026319,1738887059950,-16799.58119345,0.000169,2]
[352026320,1738887059960,-16799.58119345,0.000169,2]
[352026321,1738887059970,-16799.58119345,0.000169,2]
[352026322,1738887059980,-803.37,0.00016984,2]
[352026323,1738887059993,-166.769304,0.00016986,2]
[352026324,1738887060003,-202.73,0.00016986,2]
[352026325,1738887060013,-500.0,0.00016986,2]
[352026326,1738887060023,-500.0,0.00016986,2]
[352026327,1738887060034,-500.0,0.00016986,2]
[352026328,1738887060046,-523.46,0.00016986,2]
[352026329,1738887060058,-500.0,0.00016986,2]
[352026330,1738887060071,-500.0,0.00016986,2]
[352026331,1738887060082,-500.0,0.00016986,2]
[352026332,1738887060092,-500.0,0.00016986,2]
[352026333,1738887060103,-500.0,0.00016986,2]
[352026334,1738887060113,-500.0,0.00016986,2]
[352026335,1738887060122,-500.0,0.00016986,2]
[352026336,1738887060132,-553.75,0.00016986,2]
[352026337,1738887060142,-500.0,0.00016986,2]
[352026338,1738887060152,-500.0,0.00016986,2]
[352026339,1738887060166,-500.0,0.00016986,2]
[352026340,1738887060175,-500.0,0.00016986,2]
[352026341,1738887060185,-500.0,0.00016986,2]
[352026342,1738887060194,-500.0,0.00016986,2]
[352026343,1738887060204,-500.0,0.00016986,2]
[352026344,1738887060214,-500.0,0.00016986,2]
[352026345,1738887060224,-500.0,0.00016986,2]
[352026346,1738887060233,-500.0,0.00016986,2]
[352026347,1738887060243,-535.82,0.00016986,2]
[352026348,1738887060252,-500.0,0.00016986,2]
[352026349,1738887060261,-500.0,0.00016986,2]
[352026350,1738887060271,-500.0,0.00016986,2]
[352026351,1738887060282,-500.0,0.00016986,2]
[352026352,1738887060291,-188.553296,0.00016986,2]
[352026353,1738887060301,-240.1,0.00016986,2]
[352026354,1738887060310,-500.0,0.00016986,2]
[352026355,1738887060321,-592.27,0.00016986,2]
[352026356,1738887060330,-500.0,0.00016986,2]
[352026357,1738887060337,-500.0,0.00016986,2]
[352026358,1738887060346,-500.0,0.00016986,2]
[352026359,1738887060354,-500.0,0.00016986,2]
[352026360,1738887060362,-500.0,0.00016986,2]
[352026361,1738887060370,-500.0,0.00016986,2]
[352026362,1738887060378,-500.0,0.00016986,2]
[352026363,1738887060386,-500.0,0.00016986,2]
[352026364,1738887060395,-500.0,0.00016986,2]
[352026365,1738887060524,-500.0,0.00016986,2]
[352026366,1738887060535,-500.0,0.00016986,2]
[352026367,1738887060546,-500.0,0.00016986,2]
[352026368,1738887060554,-305.35,0.00016986,2]
[352026369,1738887060561,-500.0,0.00016986,2]
[352026370,1738887060569,-500.0,0.00016986,2]
[352026371,1738887060577,-239.36832,0.00016986,2]
[352026372,1738887060585,-500.0,0.00016986,2]
[352026373,1738887060592,-500.0,0.00016986,2]
[352026374,1738887060600,-500.0,0.00016986,2]
[352026375,1738887060607,-500.0,0.00016986,2]
[352026376,1738887060614,-500.0,0.00016986,2]
[352026377,1738887060623,-500.0,0.00016986,2]
[352026378,1738887060630,-500.0,0.00016986,2]
[352026379,1738887060637,-500.0,0.00016986,2]
[352026380,1738887060644,-512.02908808,0.00016986,2]
[352026381,1738887060652,-500.0,0.00016986,2]
[352026382,1738887060660,-500.0,0.00016986,2]
[352026383,1738887060668,-500.0,0.00016986,2]
[352026384,1738887060677,-500.0,0.00016986,2]
[352026385,1738887060686,-500.0,0.00016986,2]
[352026386,1738887060696,-500.0,0.00016986,2]
[352026387,1738887060706,-339.62718677,0.00016986,2]
[352026388,1738887060715,-500.0,0.00016986,2]
[352026389,1738887060724,-227.52,0.00016986,2]
[352026390,1738887060734,-500.0,0.00016986,2]
[352026391,1738887060743,-500.0,0.00016986,2]
[352026392,1738887060752,-551.14,0.00016986,2]
[352026393,1738887060761,-500.0,0.00016986,2]
[352026394,1738887060771,-500.0,0.00016986,2]
[352026395,1738887060780,-500.0,0.00016986,2]
[352026396,1738887060790,-500.0,0.00016986,2]
[352026397,1738887060799,-500.0,0.00016986,2]
[352026398,1738887060809,-500.0,0.00016986,2]
[352026399,1738887060818,-175.38,0.00016986,2]
[352026400,1738887060828,-500.0,0.00016986,2]
[352026401,1738887060837,-500.0,0.00016986,2]
[352026402,1738887060847,-500.0,0.00016986,2]
[352026403,1738887060856,-646.74,0.00016986,2]
[352026404,1738887060866,-403.77,0.00016986,2]
[352026405,1738887060875,-500.0,0.00016986,2]
[352026406,1738887060884,-500.0,0.00016986,2]
[352026407,1738887060893,-236.2,0.00016986,2]
[352026408,1738887060902,-500.0,0.00016986,2]
[352026409,1738887060913,-500.0,0.00016986,2]
[352026410,1738887060923,-500.0,0.00016986,2]
[352026411,1738887060932,-500.0,0.00016986,2]
[352026412,1738887060942,-500.0,0.00016986,2]
[352026413,1738887060951,-500.0,0.00016986,2]
[352026414,1738887060961,-157.21,0.00016986,2]
[352026415,1738887060971,-500.0,0.00016986,2]
[352026416,1738887060982,-500.0,0.00016986,2]
[352026417,1738887060993,-500.0,0.00016986,2]
[352026418,1738887061003,-500.0,0.00016986,2]
[352026419,1738887061011,-500.0,0.00016986,2]
[352026420,1738887061022,-500.0,0.00016986,2]
[352026421,1738887061032,-500.0,0.00016986,2]
[352026422,1738887061041,-500.0,0.00016986,2]
[352026423,1738887061051,-500.0,0.00016986,2]
[352026424,1738887061059,-228.26,0.00016986,2]
[352026425,1738887061069,-500.0,0.00016986,2]
[352026426,1738887061079,-500.0,0.00016986,2]
[352026427,1738887061088,-500.0,0.00016986,2]
[352026428,1738887061097,-500.0,0.00016986,2]
[352026429,1738887061107,-500.0,0.00016986,2]
[352026430,1738887061116,-599.22,0.00016986,2]
[352026431,1738887061125,-500.0,0.00016986,2]
[352026432,1738887061134,-500.0,0.00016986,2]
[352026433,1738887061144,-547.32,0.00016986,2]
[352026434,1738887061153,-500.0,0.00016986,2]
[352026435,1738887061163,-500.0,0.00016986,2]
[352026436,1738887061172,-704.99,0.00016986,2]
[352026437,1738887061182,-528.98,0.00016986,2]
[352026438,1738887061191,-500.0,0.00016986,2]
[352026439,1738887061201,-500.0,0.00016986,2]
[352026440,1738887061211,-500.0,0.00016986,2]
[352026441,1738887061221,-538.11,0.00016986,2]
[352026442,1738887061231,-749.24,0.00016986,2]
[352026443,1738887061241,-500.0,0.00016986,2]
[352026444,1738887061250,-500.0,0.00016986,2]
[352026445,1738887061260,-500.0,0.00016986,2]
[352026446,1738887061270,-500.0,0.00016986,2]
[352026447,1738887061279,-500.0,0.00016986,2]
[352026448,1738887061291,-500.0,0.00016986,2]
[352026449,1738887061301,-500.0,0.00016986,2]
[352026450,1738887061310,-568.75,0.00016986,2]
[352026451,1738887061320,-500.0,0.00016986,2]
[352026452,1738887061329,-500.0,0.00016986,2]
[352026453,1738887061339,-500.0,0.00016986,2]
[352026454,1738887061349,-500.0,0.00016986,2]
[352026455,1738887061358,-186.02,0.00016986,2]
[352026456,1738887061368,-846.43,0.00016986,2]
[352026457,1738887061378,-500.0,0.00016986,2]
[352026458,1738887061387,-875.88,0.00016986,2]
[352026459,1738887061397,-554.71,0.00016986,2]
[352026460,1738887061407,-2472.36,0.00016986,2]
[352026461,1738887061416,-740.46,0.00016986,2]
[352026462,1738887061426,-699.17,0.00016986,2]
[352026463,1738887061435,-500.0,0.00016986,2]
[352026464,1738887061445,-500.0,0.00016986,2]
[352026465,1738887061455,-673.75,0.00016986,2]
[352026466,1738887061464,-500.23,0.00016986,2]
[352026467,1738887061474,-572.48,0.00016986,2]
[352026468,1738887061485,-680.74,0.00016986,2]
[352026469,1738887061495,-854.5,0.00016986,2]
[352026470,1738887061505,-500.0,0.00016986,2]
[352026471,1738887061515,-659.8,0.00016986,2]
[352026472,1738887061526,-1266.77,0.00016986,2]
[352026473,1738887061536,-888.98,0.00016986,2]
[352026474,1738887061545,-333.4,0.00016986,2]
[352026475,1738887061555,-2607.66,0.00016986,2]
[352026476,1738887061565,-628.17,0.00016986,2]
[352026477,1738887061574,-563.12,0.00016986,2]
[352026478,1738887061584,-774.98,0.00016986,2]
[352026479,1738887061593,-500.0,0.00016986,2]
[352026480,1738887061603,-500.0,0.00016986,2]
[352026481,1738887061612,-500.0,0.00016986,2]
[352026482,1738887061622,-500.0,0.00016986,2]
[352026483,1738887061632,-854.75,0.00016986,2]
[352026484,1738887061642,-572.06,0.00016986,2]
[352026485,1738887061652,-500.0,0.00016986,2]
[352026486,1738887061662,-500.0,0.00016986,2]
[352026487,1738887061671,-500.0,0.00016986,2]
[352026488,1738887061681,-500.0,0.00016986,2]
[352026489,1738887061691,-761.68,0.00016986,2]
[352026490,1738887061700,-1006.06,0.00016986,2]
[352026491,1738887061709,-500.0,0.00016986,2]
[352026492,1738887061719,-500.0,0.00016986,2]
[352026493,1738887061728,-767.84,0.00016986,2]
[352026494,1738887061737,-1113.92,0.00016986,2]
[352026495,1738887061747,-500.0,0.00016986,2]
[352026496,1738887061756,-859.98,0.00016986,2]
[352026497,1738887061768,-648.05,0.00016986,2]
[352026498,1738887061778,-790.48,0.00016986,2]
[352026499,1738887061791,-500.0,0.00016986,2]
[352026500,1738887061801,-500.0,0.00016986,2]
[352026501,1738887061811,-500.0,0.00016986,2]
[352026502,1738887061822,-1534.72,0.00016986,2]
[352026503,1738887061833,-1014.32,0.00016986,2]
[352026504,1738887061866,-954.05,0.00016986,2]
[352026505,1738887061876,-831.75,0.00016986,2]
[352026506,1738887061887,-500.0,0.00016986,2]
[352026507,1738887061897,-500.0,0.00016986,2]
[352026508,1738887061907,-500.0,0.00016986,2]
[352026509,1738887061917,-721.07,0.00016986,2]
[352026510,1738887061928,-932.77,0.00016986,2]
[352026511,1738887061938,-1177.66,0.00016986,2]
[352026512,1738887061947,-175.34,0.00016986,2]
[352026513,1738887061957,-500.0,0.00016986,2]
[352026514,1738887061967,-500.0,0.00016986,2]
[352026515,1738887061980,-809.96,0.00016986,2]
[352026516,1738887061991,-937.04,0.00016986,2]
[352026517,1738887062001,-819.27,0.00016986,2]
[352026518,1738887062011,-500.0,0.00016986,2]
[352026519,1738887062023,-1021.65,0.00016986,2]
[352026520,1738887062036,-500.0,0.00016986,2]
[352026521,1738887062048,-533.9,0.00016986,2]
[352026522,1738887062058,-921.55,0.00016986,2]
[352026523,1738887062071,-1572.61,0.00016986,2]
[352026524,1738887062081,-757.66,0.00016986,2]
[352026525,1738887062091,-508.02,0.00016986,2]
[352026526,1738887062101,-845.1,0.00016986,2]
[352026527,1738887062110,-1046.11,0.00016986,2]
[352026528,1738887062120,-1427.31,0.00016986,2]
[352026529,1738887062129,-794.65,0.00016986,2]
[352026530,1738887062139,-500.0,0.00016986,2]
[352026531,1738887062149,-2730.71,0.00016986,2]
[352026532,1738887062159,-806.13,0.00016986,2]
[352026533,1738887062169,-500.0,0.00016986,2]
[352026534,1738887062178,-1195.72,0.00016986,2]
[352026535,1738887062187,-500.0,0.00016986,2]
[352026536,1738887062197,-845.52,0.00016986,2]
[352026537,1738887062207,-1708.35,0.00016986,2]
[352026538,1738887062217,-511.06832147,0.00016986,2]
[352026539,1738887062227,-500.0,0.00016986,2]
[352026540,1738887062237,-820.778,0.00016986,2]
[352026541,1738887062247,-1313.56,0.00016986,2]
[352026542,1738887062257,-1698.53,0.00016986,2]
[352026543,1738887062267,-905.6,0.00016986,2]
[352026544,1738887062276,-760.42,0.00016986,2]
[352026545,1738887062288,-1365.46,0.00016986,2]
[352026546,1738887062298,-1047.01,0.00016986,2]
[352026547,1738887062307,-745.99,0.00016986,2]
[352026548,1738887062317,-1348.29,0.00016986,2]
[352026549,1738887062327,-500.0,0.00016986,2]
[352026550,1738887062338,-500.0,0.00016986,2]
[352026551,1738887062348,-500.0,0.00016986,2]
[352026552,1738887062358,-500.0,0.00016986,2]
[352026553,1738887062367,-1127.34,0.00016986,2]
[352026554,1738887062377,-1455.42,0.00016986,2]
[352026555,1738887062387,-1300.25,0.00016986,2]
[352026556,1738887062396,-459.08,0.00016986,2]
[352026557,1738887062406,-500.0,0.00016986,2]
[352026558,1738887062416,-814.3,0.00016986,2]
[352026559,1738887062426,-270.86,0.00016986,2]
[352026560,1738887062436,-517.97,0.00016986,2]
[352026561,1738887062446,-500.0,0.00016986,2]
[352026562,1738887062456,-500.0,0.00016986,2]
[352026563,1738887062466,-2883.63,0.00016986,2]
[352026564,1738887062476,-500.0,0.00016986,2]
[352026565,1738887062485,-500.0,0.00016986,2]
[352026566,1738887062495,-500.0,0.00016986,2]
[352026567,1738887062504,-647.54,0.00016986,2]
[352026568,1738887062514,-1252.07,0.00016986,2]
[352026569,1738887062524,-1086.03,0.00016986,2]
[352026570,1738887062537,-500.0,0.00016986,2]
[352026571,1738887062547,-1143.54,0.00016986,2]
[352026572,1738887062556,-303.89,0.00016986,2]
[352026573,1738887062567,-1045.05,0.00016986,2]
[352026574,1738887062577,-500.0,0.00016986,2]
[352026575,1738887062586,-500.0,0.00016986,2]
[352026576,1738887062595,-500.0,0.00016986,2]
[352026577,1738887062605,-168.31,0.00016986,2]
[352026578,1738887062614,-1780.26,0.00016986,2]
[352026579,1738887062623,-500.0,0.00016986,2]
[352026580,1738887062633,-1089.69,0.00016986,2]
[352026581,1738887062643,-500.0,0.00016986,2]
[352026582,1738887062654,-1130.82,0.00016986,2]
[352026583,1738887062663,-500.0,0.00016986,2]
[352026584,1738887062672,-500.0,0.00016986,2]
[352026585,1738887062681,-1278.31,0.00016986,2]
[352026586,1738887062691,-500.0,0.00016986,2]
[352026587,1738887062700,-545.0,0.00016986,2]
[352026588,1738887062710,-867.97,0.00016986,2]
[352026589,1738887062719,-801.06,0.00016986,2]
[352026590,1738887062728,-500.0,0.00016986,2]
[352026591,1738887062738,-500.0,0.00016986,2]
[352026592,1738887062749,-1021.32,0.00016986,2]
[352026593,1738887062759,-652.88,0.00016986,2]
[352026594,1738887062770,-500.0,0.00016986,2]
[352026595,1738887062779,-356.17,0.00016986,2]
[352026596,1738887062794,-721.13,0.00016986,2]
[352026597,1738887062805,-500.0,0.00016986,2]
[352026598,1738887062817,-558.13,0.00016986,2]
[352026599,1738887062835,-500.0,0.00016986,2]
[352026600,1738887062845,-465.23,0.00016986,2]
[352026601,1738887062856,-500.0,0.00016986,2]
[352026602,1738887062867,-2386.13,0.00016986,2]
[352026603,1738887062878,-500.0,0.00016986,2]
[352026604,1738887062889,-500.0,0.00016986,2]
[352026605,1738887062900,-500.0,0.00016986,2]
[352026606,1738887062909,-500.0,0.00016986,2]
[352026607,1738887062920,-634.77,0.00016986,2]
[352026608,1738887062930,-532.47,0.00016986,2]
[352026609,1738887062940,-781.32,0.00016986,2]
[352026610,1738887062950,-500.0,0.00016986,2]
[352026611,1738887062959,-500.0,0.00016986,2]
[352026612,1738887062969,-643.51,0.00016986,2]
[352026613,1738887062982,-500.0,0.00016986,2]
[352026614,1738887062996,-500.0,0.00016986,2]
[352026615,1738887063007,-500.0,0.00016986,2]
[352026616,1738887063018,-803.41,0.00016986,2]
[352026617,1738887063028,-500.0,0.00016986,2]
[352026618,1738887063044,-500.0,0.00016986,2]
[352026619,1738887063054,-896.94,0.00016986,2]
[352026620,1738887063066,-500.0,0.00016986,2]
[352026621,1738887063077,-1571.73,0.00016986,2]
[352026622,1738887063088,-500.0,0.00016986,2]
[352026623,1738887063098,-832.99,0.00016986,2]
[352026624,1738887063108,-500.0,0.00016986,2]
[352026625,1738887063119,-650.0,0.00017,2]
[352026626,1738887063128,-679.68663879,0.00017035,2]
[352026627,1738887063138,-500.0,0.00017056,2]
[352026628,1738887063148,-1700.0,0.00017056,2]
[352026629,1738887063158,-444.06694489,0.00017084,2]
[352026630,1738887063168,-1000.0,0.00017089,2]
[352026631,1738887063178,-1000.0,0.00017121,2]
[352026632,1738887063189,-1000.0,0.00017121,2]
[352026633,1738887063199,-515.59321892,0.00017121,2]
[352026634,1738887063210,-725.92095789,0.00017121,2]
[352026635,1738887063221,-506.66884179,0.00017121,2]
[352026636,1738887063231,-1000.0,0.00017121,2]
[352026637,1738887063242,-1000.0,0.00017121,2]
[352026638,1738887063252,-803.37,0.00017121,2]
[352026639,1738887063261,-418.17,0.00017123,2]
[352026640,1738887063270,-500.0,0.00017123,2]
[352026641,1738887063280,-500.0,0.00017123,2]
[352026642,1738887063294,-500.0,0.00017123,2]
[352026643,1738887063304,-192.58,0.00017123,2]
[352026644,1738887063317,-266.62,0.00017123,2]
[352026645,1738887063338,-500.0,0.00017123,2]
[352026646,1738887063357,-398.21,0.00017123,2]
[352026647,1738887063367,-500.0,0.00017123,2]
[352026648,1738887063377,-553.75,0.00017123,2]
[352026649,1738887063387,-500.0,0.00017123,2]
[352026650,1738887063399,-500.0,0.00017123,2]
[352026651,1738887063410,-500.0,0.00017123,2]
[352026652,1738887063420,-500.0,0.00017123,2]
[352026653,1738887063578,-162.28,0.00017123,2]
[352026654,1738887063589,-500.0,0.00017123,2]
[352026655,1738887063600,-500.0,0.00017123,2]
[352026656,1738887063611,-161.07,0.00017123,2]
[352026657,1738887063621,-500.0,0.00017123,2]
[352026658,1738887063632,-500.0,0.00017123,2]
[352026659,1738887063642,-500.0,0.00017123,2]
[352026660,1738887063652,-500.0,0.00017123,2]
[352026661,1738887063662,-188.553296,0.00017123,2]
[352026662,1738887063673,-500.0,0.00017123,2]
[352026663,1738887063683,-500.0,0.00017123,2]
[352026664,1738887063694,-500.0,0.00017123,2]
[352026665,1738887063704,-500.0,0.00017123,2]
[352026666,1738887063715,-500.0,0.00017123,2]
[352026667,1738887063725,-500.0,0.00017123,2]
[352026668,1738887063736,-500.0,0.00017123,2]
[352026669,1738887063746,-500.0,0.00017123,2]
[352026670,1738887063756,-500.0,0.00017123,2]
[352026671,1738887063767,-500.0,0.00017123,2]